bitfinex-derivatives/quotes_BTCF0:USTF0_20260111
["timestamp","ask_amount","ask_price","bid_price","bid_amount"]
[1768102637423,0.02486023,90771.0,90761.0,0.011031]
[1768102637628,0.11280069,90774.0,90761.0,0.011031]
[1768102637828,0.0248603,90773.0,90761.0,0.011031]
[1768102638125,0.0248603,90772.0,90761.0,0.011031]
[1768102638327,0.0248603,90771.0,90761.0,0.011031]
[1768102638528,0.11280069,90774.0,90761.0,0.011031]
[1768102638727,0.02486039,90773.0,90761.0,0.011031]
[1768102638927,0.02486039,90772.0,90761.0,0.011031]
[1768102639127,0.02486039,90771.0,90761.0,0.011031]
[1768102639328,0.11280069,90774.0,90761.0,0.011031]
[1768102639532,0.0248605,90773.0,90761.0,0.011031]
[1768102639730,0.0248605,90772.0,90761.0,0.011031]
[1768102640031,0.0248605,90771.0,90761.0,0.011031]
[1768102640230,0.11280069,90774.0,90761.0,0.011031]
[1768102640429,0.02486064,90773.0,90761.0,0.011031]
[1768102640630,0.02486064,90772.0,90761.0,0.011031]
[1768102640831,0.02486064,90771.0,90761.0,0.011031]
[1768102641031,0.11280069,90774.0,90761.0,0.011031]
[1768102641221,0.02486064,90773.0,90761.0,0.011031]
[1768102641421,0.02486064,90772.0,90761.0,0.011031]
[1768102641625,0.02486064,90771.0,90761.0,0.011031]
[1768102641824,0.00905625,90773.0,90761.0,0.011031]
[1768102642024,0.02490832,90772.0,90761.0,0.011031]
[1768102642227,0.02490832,90771.0,90761.0,0.011031]
[1768102642427,0.00905625,90773.0,90761.0,0.011031]
[1768102642628,0.02490851,90772.0,90761.0,0.011031]
[1768102642829,0.02490851,90771.0,90761.0,0.011031]
[1768102643028,0.00905625,90773.0,90761.0,0.011031]
[1768102643225,0.02490851,90772.0,90761.0,0.011031]
[1768102643427,0.02490851,90771.0,90761.0,0.011031]
[1768102643626,0.00905625,90773.0,90761.0,0.011031]
[1768102643828,0.02490875,90772.0,90761.0,0.011031]
[1768102644029,0.02490875,90771.0,90761.0,0.011031]
[1768102644326,0.00905625,90773.0,90761.0,0.011031]
[1768102644529,0.02490904,90772.0,90761.0,0.011031]
[1768102644728,0.02490904,90771.0,90761.0,0.011031]
[1768102645027,0.00905625,90773.0,90761.0,0.011031]
[1768102645231,0.02490904,90772.0,90761.0,0.011031]
[1768102645525,0.02490904,90771.0,90761.0,0.011031]
[1768102645720,0.00905625,90773.0,90764.0,0.01103]
[1768102645918,0.02490941,90772.0,90764.0,0.01103]
[1768102646124,0.02490941,90771.0,90764.0,0.01103]
[1768102646320,0.00905625,90773.0,90760.0,0.011031]
[1768102646520,0.02490986,90772.0,90762.0,0.01103]
[1768102646732,0.02490986,90771.0,90762.0,0.01103]
[1768102646933,0.00905625,90773.0,90762.0,0.01103]
[1768102647137,0.02490986,90772.0,90762.0,0.01103]
[1768102647332,0.02490986,90771.0,90762.0,0.01103]
[1768102647533,0.00905625,90773.0,90762.0,0.01103]
[1768102647838,0.02491103,90772.0,90762.0,0.01103]
[1768102648035,0.02491103,90771.0,90762.0,0.01103]
[1768102648236,0.00905625,90773.0,90762.0,0.01103]
[1768102648432,0.02491103,90772.0,90762.0,0.01103]
[1768102648631,0.02491103,90771.0,90762.0,0.01103]
[1768102648828,0.00905625,90773.0,90762.0,0.01103]
[1768102649029,0.02491103,90772.0,90762.0,0.01103]
[1768102649328,0.02491103,90771.0,90762.0,0.01103]
[1768102649534,0.00905625,90773.0,90762.0,0.01103]
[1768102649834,0.02491101,90772.0,90762.0,0.01103]
[1768102650132,0.02491101,90771.0,90762.0,0.01103]
[1768102650332,0.00905625,90773.0,90762.0,0.01103]
[1768102650535,0.02491101,90772.0,90759.0,0.011031]
[1768102650734,0.02491101,90771.0,90761.0,0.011031]
[1768102650929,0.00905625,90773.0,90761.0,0.011031]
[1768102651130,0.02491101,90772.0,90761.0,0.011031]
[1768102651433,0.02491101,90771.0,90761.0,0.011031]
[1768102651633,0.00905625,90773.0,90761.0,0.011031]
[1768102651840,0.024911,90772.0,90761.0,0.011031]
[1768102652038,0.024911,90771.0,90761.0,0.011031]
[1768102652229,0.00905625,90773.0,90761.0,0.011031]
[1768102652429,0.02491101,90772.0,90761.0,0.011031]
[1768102652634,0.02491101,90771.0,90761.0,0.011031]
[1768102652836,0.00905625,90773.0,90761.0,0.011031]
[1768102653137,0.02491101,90772.0,90761.0,0.011031]
[1768102653441,0.02491101,90771.0,90761.0,0.011031]
[1768102653635,0.00905625,90773.0,90761.0,0.011031]
[1768102653833,0.024911,90772.0,90761.0,0.011031]
[1768102654034,0.024911,90771.0,90761.0,0.011031]
[1768102654243,0.00905625,90773.0,90761.0,0.011031]
[1768102654442,0.02491099,90772.0,90761.0,0.011031]
[1768102654642,0.02491099,90771.0,90761.0,0.011031]
[1768102654835,0.00905625,90773.0,90761.0,0.011031]
[1768102655036,0.02491099,90772.0,90761.0,0.011031]
[1768102655236,0.02491099,90771.0,90761.0,0.011031]
[1768102655440,0.00905625,90773.0,90761.0,0.011031]
[1768102655741,0.02491099,90772.0,90761.0,0.011031]
[1768102655939,0.02491099,90771.0,90761.0,0.011031]
[1768102656141,0.00905625,90773.0,90761.0,0.011031]
[1768102656436,0.02491099,90772.0,90761.0,0.011031]
[1768102656741,0.17669715,90771.0,90761.0,0.011031]
[1768102656941,0.15178616,90771.0,90761.0,0.011031]
[1768102658036,0.15178616,90771.0,90757.0,0.011031]
[1768102658348,0.15178616,90771.0,90759.0,0.011031]
[1768102658540,0.15178616,90770.0,90759.0,0.011031]
[1768102663156,0.01854576,90771.0,90757.0,0.011031]
[1768102663458,0.1769776,90770.0,90757.0,0.011031]
[1768102663642,0.15178616,90770.0,90757.0,0.011031]
[1768102666858,0.15178616,90770.0,90759.0,0.011031]
[1768102667053,0.02523894,90769.0,90759.0,0.011031]
[1768102667252,0.02523894,90768.0,90759.0,0.011031]
[1768102667455,0.02523894,90767.0,90759.0,0.011031]
[1768102667654,0.02523894,90766.0,90759.0,0.011031]
[1768102667852,0.15178616,90770.0,90759.0,0.011031]
[1768102668053,0.02523891,90769.0,90759.0,0.011031]
[1768102668251,0.02523891,90768.0,90759.0,0.011031]
[1768102668451,0.02523891,90767.0,90759.0,0.011031]
[1768102668652,0.02523891,90766.0,90759.0,0.011031]
[1768102668852,0.15178616,90770.0,90759.0,0.011031]
[1768102669053,0.02523883,90769.0,90759.0,0.011031]
[1768102669253,0.02523883,90768.0,90759.0,0.011031]
[1768102669553,0.02523883,90767.0,90759.0,0.011031]
[1768102669751,0.02523883,90766.0,90759.0,0.011031]
[1768102669945,0.15178616,90770.0,90759.0,0.011031]
[1768102670150,0.02523881,90769.0,90759.0,0.011031]
[1768102670349,0.02523881,90768.0,90759.0,0.011031]
[1768102670550,0.02523881,90767.0,90759.0,0.011031]
[1768102670750,0.02523881,90766.0,90759.0,0.011031]
[1768102670954,0.15178616,90770.0,90759.0,0.011031]
[1768102671150,0.02523879,90769.0,90759.0,0.011031]
[1768102671459,0.02523879,90768.0,90759.0,0.011031]
[1768102671660,0.02523879,90767.0,90759.0,0.011031]
[1768102671860,0.02523879,90766.0,90759.0,0.011031]
[1768102672164,0.15178616,90770.0,90759.0,0.011031]
[1768102672347,0.02523877,90769.0,90759.0,0.011031]
[1768102672552,0.02523877,90768.0,90759.0,0.011031]
[1768102672852,0.02523877,90767.0,90759.0,0.011031]
[1768102673052,0.02523877,90766.0,90759.0,0.011031]
[1768102673346,0.15178616,90770.0,90759.0,0.011031]
[1768102673547,0.02523873,90769.0,90759.0,0.011031]
[1768102673750,0.02523873,90768.0,90759.0,0.011031]
[1768102673959,0.02523873,90767.0,90759.0,0.011031]
[1768102674160,0.02523873,90766.0,90759.0,0.011031]
[1768102674357,0.15178616,90770.0,90759.0,0.011031]
[1768102674549,0.02535664,90769.0,90759.0,0.011031]
[1768102674752,0.02535664,90768.0,90759.0,0.011031]
[1768102674960,0.02535664,90767.0,90759.0,0.011031]
[1768102675163,0.02535664,90766.0,90759.0,0.011031]
[1768102675364,0.15178616,90770.0,90759.0,0.011031]
[1768102675663,0.02535662,90769.0,90759.0,0.011031]
[1768102675866,0.02535662,90768.0,90759.0,0.011031]
[1768102676058,0.02535662,90767.0,90759.0,0.011031]
[1768102676259,0.02535662,90766.0,90759.0,0.011031]
[1768102676460,0.15178616,90770.0,90759.0,0.011031]
[1768102676660,0.02535661,90769.0,90759.0,0.011031]
[1768102676860,0.02535661,90768.0,90759.0,0.011031]
[1768102677059,0.15178616,90770.0,90759.0,0.011031]
[1768102683772,0.16151889,90770.0,90759.0,0.011031]
[1768102684376,0.17109025,90770.0,90759.0,0.011031]
[1768102689591,0.01930409,90768.0,90759.0,0.011031]
[1768102689788,0.01930409,90768.0,90753.0,0.011032]
[1768102694078,0.01103,90765.0,90750.0,0.00993831]
[1768102694692,0.03033409,90768.0,90750.0,0.00993831]
[1768102695084,0.03033409,90768.0,90751.0,0.011032]
[1768102698195,0.01930409,90768.0,90751.0,0.011032]
[1768102717012,0.02558436,90767.0,90751.0,0.011032]
[1768102717212,0.02558436,90766.0,90751.0,0.011032]
[1768102717414,0.02558436,90765.0,90751.0,0.011032]
[1768102717613,0.01930409,90768.0,90751.0,0.011032]
[1768102717815,0.02558456,90767.0,90751.0,0.011032]
[1768102718014,0.02558456,90766.0,90751.0,0.011032]
[1768102718312,0.02558456,90765.0,90751.0,0.011032]
[1768102718514,0.01930409,90768.0,90751.0,0.011032]
[1768102718815,0.0255848,90767.0,90751.0,0.011032]
[1768102719015,0.0255848,90766.0,90751.0,0.011032]
[1768102719314,0.0255848,90765.0,90751.0,0.011032]
[1768102719518,0.01930409,90768.0,90751.0,0.011032]
[1768102719705,0.02558504,90767.0,90751.0,0.011032]
[1768102719904,0.02558504,90766.0,90751.0,0.011032]
[1768102720113,0.02558504,90765.0,90751.0,0.011032]
[1768102720413,0.02558533,90764.0,90751.0,0.011032]
[1768102720609,0.01930409,90768.0,90751.0,0.011032]
[1768102720910,0.02558533,90767.0,90751.0,0.011032]
[1768102721110,0.02558533,90766.0,90751.0,0.011032]
[1768102721311,0.02558533,90765.0,90751.0,0.011032]
[1768102721512,0.02558533,90764.0,90751.0,0.011032]
[1768102721713,0.01930409,90768.0,90751.0,0.011032]
[1768102721918,0.02566504,90767.0,90751.0,0.011032]
[1768102722117,0.02566504,90766.0,90751.0,0.011032]
[1768102722414,0.02566504,90765.0,90751.0,0.011032]
[1768102722612,0.02566504,90764.0,90751.0,0.011032]
[1768102722812,0.01930409,90768.0,90751.0,0.011032]
[1768102722999,0.02566559,90767.0,90751.0,0.011032]
[1768102723206,0.02566559,90766.0,90751.0,0.011032]
[1768102723409,0.02566559,90765.0,90751.0,0.011032]
[1768102723609,0.02566559,90764.0,90751.0,0.011032]
[1768102723809,0.01930409,90768.0,90751.0,0.011032]
[1768102724010,0.02566684,90767.0,90751.0,0.011032]
[1768102724211,0.02566684,90766.0,90751.0,0.011032]
[1768102724510,0.02566684,90765.0,90751.0,0.011032]
[1768102724713,0.02566684,90764.0,90751.0,0.011032]
[1768102724911,0.01930409,90768.0,90751.0,0.011032]
[1768102725112,0.02566685,90767.0,90751.0,0.011032]
[1768102725312,0.02566685,90766.0,90751.0,0.011032]
[1768102725514,0.02566685,90765.0,90751.0,0.011032]
[1768102725715,0.02566685,90764.0,90751.0,0.011032]
[1768102725917,0.01930409,90768.0,90751.0,0.011032]
[1768102726120,0.02566685,90767.0,90751.0,0.011032]
[1768102726318,0.02566685,90766.0,90751.0,0.011032]
[1768102726514,0.02566685,90765.0,90751.0,0.011032]
[1768102726715,0.02566685,90764.0,90751.0,0.011032]
[1768102726916,0.01930409,90768.0,90751.0,0.011032]
[1768102728521,0.01930409,90768.0,90753.0,0.011032]
[1768102735729,0.01930409,90768.0,90749.0,0.104792]
[1768102735916,0.01930409,90768.0,90751.0,0.011032]
[1768102738229,0.01103,90767.0,90751.0,0.011032]
[1768102742138,0.01930409,90768.0,90751.0,0.011032]
[1768102751353,0.01103,90767.0,90751.0,0.011032]
[1768102751652,0.03033409,90768.0,90751.0,0.011032]
[1768102766661,0.00980731,90767.0,90751.0,0.011032]
[1768102767063,0.0256849,90766.0,90751.0,0.011032]
[1768102767362,0.00980731,90767.0,90751.0,0.011032]
[1768102767562,0.02568489,90766.0,90751.0,0.011032]
[1768102767756,0.02568489,90765.0,90751.0,0.011032]
[1768102767956,0.02568489,90764.0,90751.0,0.011032]
[1768102768157,0.00980731,90767.0,90751.0,0.011032]
[1768102768357,0.02568417,90766.0,90751.0,0.011032]
[1768102768556,0.02568417,90765.0,90751.0,0.011032]
[1768102768763,0.02568417,90764.0,90751.0,0.011032]
[1768102768964,0.00980731,90767.0,90751.0,0.011032]
[1768102769164,0.02568416,90766.0,90751.0,0.011032]
[1768102769361,0.02568416,90765.0,90751.0,0.011032]
[1768102769664,0.02568416,90764.0,90751.0,0.011032]
[1768102769865,0.00980731,90767.0,90751.0,0.011032]
[1768102770164,0.02568417,90766.0,90751.0,0.011032]
[1768102770357,0.02568417,90765.0,90751.0,0.011032]
[1768102770558,0.02568417,90764.0,90751.0,0.011032]
[1768102770858,0.00980731,90767.0,90751.0,0.011032]
[1768102771062,0.02568418,90766.0,90751.0,0.011032]
[1768102771262,0.02568418,90765.0,90751.0,0.011032]
[1768102771562,0.02568418,90764.0,90751.0,0.011032]
[1768102771762,0.00980731,90767.0,90751.0,0.011032]
[1768102771964,0.02568421,90766.0,90751.0,0.011032]
[1768102772262,0.02568421,90765.0,90751.0,0.011032]
[1768102772463,0.02568421,90764.0,90751.0,0.011032]
[1768102772664,0.00980731,90767.0,90751.0,0.011032]
[1768102772864,0.02568424,90766.0,90751.0,0.011032]
[1768102773066,0.02568424,90765.0,90751.0,0.011032]
[1768102773268,0.02568424,90764.0,90751.0,0.011032]
[1768102773470,0.00980731,90767.0,90751.0,0.011032]
[1768102773658,0.0256843,90766.0,90751.0,0.011032]
[1768102773858,0.0256843,90765.0,90751.0,0.011032]
[1768102774058,0.0256843,90764.0,90751.0,0.011032]
[1768102774259,0.00980731,90767.0,90751.0,0.011032]
[1768102774457,0.02568434,90766.0,90751.0,0.011032]
[1768102774654,0.02568434,90765.0,90751.0,0.011032]
[1768102774859,0.02568434,90764.0,90751.0,0.011032]
[1768102775059,0.00980731,90767.0,90751.0,0.011032]
[1768102775265,0.02568441,90766.0,90751.0,0.011032]
[1768102775474,0.02568441,90765.0,90751.0,0.011032]
[1768102775767,0.02568441,90764.0,90751.0,0.011032]
[1768102775970,0.00980731,90767.0,90751.0,0.011032]
[1768102776267,0.02568441,90766.0,90751.0,0.011032]
[1768102776466,0.02568441,90765.0,90751.0,0.011032]
[1768102776666,0.02568441,90764.0,90751.0,0.011032]
[1768102776869,0.00980731,90767.0,90751.0,0.011032]
[1768102777167,0.01949295,90767.0,90751.0,0.011032]
[1768102788881,0.01949295,90767.0,90753.0,0.011032]
[1768102794284,0.01949295,90767.0,90750.0,0.011032]
[1768102798289,0.01949295,90767.0,90752.0,0.011032]
[1768102807094,0.02582056,90766.0,90752.0,0.011032]
[1768102807292,0.02582056,90765.0,90752.0,0.011032]
[1768102807499,0.02582056,90764.0,90752.0,0.011032]
[1768102807699,0.01949295,90767.0,90752.0,0.011032]
[1768102807897,0.02582057,90766.0,90752.0,0.011032]
[1768102808098,0.02582057,90765.0,90752.0,0.011032]
[1768102808303,0.02582057,90764.0,90752.0,0.011032]
[1768102808503,0.01949295,90767.0,90752.0,0.011032]
[1768102808693,0.02582058,90766.0,90752.0,0.011032]
[1768102808993,0.02582058,90765.0,90752.0,0.011032]
[1768102809193,0.02582058,90764.0,90752.0,0.011032]
[1768102809392,0.01949295,90767.0,90752.0,0.011032]
[1768102809595,0.0258206,90766.0,90752.0,0.011032]
[1768102809801,0.0258206,90765.0,90752.0,0.011032]
[1768102810102,0.0258206,90764.0,90752.0,0.011032]
[1768102810302,0.01949295,90767.0,90752.0,0.011032]
[1768102810504,0.02582065,90766.0,90752.0,0.011032]
[1768102810704,0.02582065,90765.0,90752.0,0.011032]
[1768102810903,0.02582065,90764.0,90752.0,0.011032]
[1768102811106,0.01949295,90767.0,90752.0,0.011032]
[1768102811303,0.02582064,90766.0,90752.0,0.011032]
[1768102811503,0.0443319,90765.0,90752.0,0.011032]
[1768102811705,0.02582064,90764.0,90752.0,0.011032]
[1768102811906,0.01851126,90765.0,90752.0,0.011032]
[1768102812206,0.02579246,90764.0,90752.0,0.011032]
[1768102812406,0.01851126,90765.0,90752.0,0.011032]
[1768102812602,0.02579246,90764.0,90752.0,0.011032]
[1768102812801,0.01851126,90765.0,90752.0,0.011032]
[1768102813102,0.02579246,90764.0,90752.0,0.011032]
[1768102813402,0.01851126,90765.0,90752.0,0.011032]
[1768102813605,0.02579246,90764.0,90749.0,0.104792]
[1768102813801,0.00939838,90765.0,90749.0,0.104792]
[1768102814101,0.02579246,90764.0,90749.0,0.104792]
[1768102814292,0.00939838,90765.0,90749.0,0.104792]
[1768102814497,0.02579246,90764.0,90749.0,0.104792]
[1768102814695,0.00939838,90765.0,90749.0,0.104792]
[1768102814897,0.02579246,90764.0,90751.0,0.011032]
[1768102815102,0.00939838,90765.0,90751.0,0.011032]
[1768102815308,0.02579246,90764.0,90751.0,0.011032]
[1768102815609,0.00939838,90765.0,90751.0,0.011032]
[1768102815910,0.02579246,90764.0,90751.0,0.011032]
[1768102816214,0.00939838,90765.0,90751.0,0.011032]
[1768102816403,0.02579245,90764.0,90751.0,0.011032]
[1768102816603,0.00939838,90765.0,90751.0,0.011032]
[1768102816804,0.02579245,90764.0,90751.0,0.011032]
[1768102817109,0.00939838,90765.0,90751.0,0.011032]
[1768102825127,0.00939838,90765.0,90749.0,0.09376]
[1768102825417,0.00939838,90765.0,90753.0,0.011032]
[1768102827021,0.00911288,90768.0,90753.0,0.011032]
[1768102852445,0.02042838,90770.0,90753.0,0.011032]
[1768102852646,0.02572136,90769.0,90753.0,0.011032]
[1768102852837,0.02572136,90768.0,90753.0,0.011032]
[1768102853037,0.02042838,90770.0,90753.0,0.011032]
[1768102853237,0.02572136,90769.0,90753.0,0.011032]
[1768102853439,0.02572136,90768.0,90753.0,0.011032]
[1768102853637,0.02042838,90770.0,90753.0,0.011032]
[1768102853838,0.02572136,90769.0,90753.0,0.011032]
[1768102854040,0.02572136,90768.0,90753.0,0.011032]
[1768102854253,0.02042838,90770.0,90753.0,0.011032]
[1768102854547,0.02572135,90769.0,90753.0,0.011032]
[1768102854747,0.02572135,90768.0,90753.0,0.011032]
[1768102854947,0.02042838,90770.0,90753.0,0.011032]
[1768102855148,0.02572135,90769.0,90753.0,0.011032]
[1768102855448,0.02572135,90768.0,90753.0,0.011032]
[1768102855746,0.02042838,90770.0,90753.0,0.011032]
[1768102855946,0.02572135,90769.0,90753.0,0.011032]
[1768102856250,0.02572135,90768.0,90753.0,0.011032]
[1768102856444,0.02042838,90770.0,90753.0,0.011032]
[1768102856643,0.02572135,90769.0,90753.0,0.011032]
[1768102856838,0.02572135,90768.0,90753.0,0.011032]
[1768102857047,0.02572135,90767.0,90753.0,0.011032]
[1768102857353,0.02572135,90766.0,90753.0,0.011032]
[1768102857557,0.02572135,90765.0,90753.0,0.011032]
[1768102857854,0.02572135,90764.0,90753.0,0.011032]
[1768102858154,0.02042838,90770.0,90753.0,0.011032]
[1768102858344,0.02572134,90769.0,90753.0,0.011032]
[1768102858540,0.02572134,90768.0,90753.0,0.011032]
[1768102858746,0.02572134,90767.0,90753.0,0.011032]
[1768102858947,0.02572134,90766.0,90753.0,0.011032]
[1768102859248,0.02572134,90765.0,90753.0,0.011032]
[1768102859446,0.02572134,90764.0,90753.0,0.011032]
[1768102859649,0.03002731,90770.0,90753.0,0.011032]
[1768102859947,0.02572134,90769.0,90753.0,0.011032]
[1768102860148,0.02572134,90768.0,90753.0,0.011032]
[1768102860349,0.02572134,90767.0,90753.0,0.011032]
[1768102860557,0.02572134,90766.0,90753.0,0.011032]
[1768102860751,0.02572134,90765.0,90753.0,0.011032]
[1768102860953,0.02572134,90764.0,90753.0,0.011032]
[1768102861154,0.03002731,90770.0,90753.0,0.011032]
[1768102861354,0.02572133,90769.0,90753.0,0.011032]
[1768102861555,0.02572133,90768.0,90753.0,0.011032]
[1768102861759,0.02572133,90767.0,90753.0,0.011032]
[1768102861957,0.02572133,90766.0,90753.0,0.011032]
[1768102862160,0.02572133,90765.0,90753.0,0.011032]
[1768102862362,0.02572133,90764.0,90753.0,0.011032]
[1768102862562,0.03002731,90770.0,90753.0,0.011032]
[1768102862761,0.02572133,90769.0,90753.0,0.011032]
[1768102862958,0.02572133,90768.0,90753.0,0.011032]
[1768102863158,0.02572133,90767.0,90753.0,0.011032]
[1768102863361,0.02572133,90766.0,90753.0,0.011032]
[1768102863562,0.02572133,90765.0,90753.0,0.011032]
[1768102863862,0.02572133,90764.0,90753.0,0.011032]
[1768102864061,0.03002731,90770.0,90753.0,0.011032]
[1768102864263,0.02572133,90769.0,90753.0,0.011032]
[1768102864563,0.02572133,90768.0,90753.0,0.011032]
[1768102864863,0.02572133,90767.0,90753.0,0.011032]
[1768102865062,0.02572133,90766.0,90753.0,0.011032]
[1768102865360,0.02572133,90765.0,90753.0,0.011032]
[1768102865560,0.02572133,90764.0,90753.0,0.011032]
[1768102865764,0.03002731,90770.0,90753.0,0.011032]
[1768102865965,0.02572137,90769.0,90753.0,0.011032]
[1768102866262,0.02572137,90768.0,90753.0,0.011032]
[1768102866460,0.02572137,90767.0,90753.0,0.011032]
[1768102866663,0.02572137,90766.0,90753.0,0.011032]
[1768102866856,0.02572137,90765.0,90753.0,0.011032]
[1768102867058,0.00900533,90769.0,90753.0,0.011032]
[1768102867257,0.02572141,90768.0,90753.0,0.011032]
[1768102867460,0.00900533,90769.0,90753.0,0.011032]
[1768102867659,0.02572146,90768.0,90753.0,0.011032]
[1768102867958,0.00900533,90769.0,90753.0,0.011032]
[1768102868160,0.02572146,90768.0,90753.0,0.011032]
[1768102868465,0.00900533,90769.0,90753.0,0.011032]
[1768102868669,0.02572152,90768.0,90753.0,0.011032]
[1768102868860,0.00900533,90769.0,90753.0,0.011032]
[1768102869063,0.02572152,90768.0,90753.0,0.011032]
[1768102869263,0.00900533,90769.0,90753.0,0.011032]
[1768102869562,0.02572161,90768.0,90753.0,0.011032]
[1768102869762,0.00900533,90769.0,90753.0,0.011032]
[1768102869969,0.02572161,90768.0,90753.0,0.011032]
[1768102870266,0.00900533,90769.0,90753.0,0.011032]
[1768102870461,0.02572165,90768.0,90753.0,0.011032]
[1768102870766,0.00900533,90769.0,90753.0,0.011032]
[1768102871064,0.02572165,90768.0,90753.0,0.011032]
[1768102871266,0.00900533,90769.0,90753.0,0.011032]
[1768102871565,0.0257217,90768.0,90753.0,0.011032]
[1768102871756,0.00900533,90769.0,90753.0,0.011032]
[1768102871956,0.02571168,90768.0,90753.0,0.011032]
[1768102872168,0.00900533,90769.0,90753.0,0.011032]
[1768102872469,0.02571175,90768.0,90753.0,0.011032]
[1768102872671,0.00900533,90769.0,90753.0,0.011032]
[1768102872968,0.02571175,90768.0,90753.0,0.011032]
[1768102873168,0.00900533,90769.0,90753.0,0.011032]
[1768102873363,0.02571176,90768.0,90753.0,0.011032]
[1768102873662,0.00900533,90769.0,90753.0,0.011032]
[1768102875269,0.02571171,90768.0,90753.0,0.011032]
[1768102875469,0.00900533,90769.0,90753.0,0.011032]
[1768102875670,0.02571168,90768.0,90753.0,0.011032]
[1768102875969,0.00900533,90769.0,90753.0,0.011032]
[1768102876169,0.02571168,90768.0,90753.0,0.011032]
[1768102876369,0.00900533,90769.0,90753.0,0.011032]
[1768102876570,0.02571168,90768.0,90753.0,0.011032]
[1768102876771,0.00900533,90769.0,90753.0,0.011032]
[1768102876972,0.02571168,90768.0,90753.0,0.011032]
[1768102877171,0.00900533,90769.0,90753.0,0.011032]
[1768102877372,0.02571169,90768.0,90753.0,0.011032]
[1768102877673,0.00900533,90769.0,90753.0,0.011032]
[1768102877872,0.02571169,90768.0,90753.0,0.011032]
[1768102878073,0.00900533,90769.0,90753.0,0.011032]
[1768102878374,0.02571169,90768.0,90753.0,0.011032]
[1768102878567,0.00900533,90769.0,90753.0,0.011032]
[1768102878768,0.02571169,90768.0,90753.0,0.011032]
[1768102878968,0.00900533,90769.0,90753.0,0.011032]
[1768102879168,0.02571169,90768.0,90753.0,0.011032]
[1768102879369,0.00900533,90769.0,90753.0,0.011032]
[1768102879571,0.02571169,90768.0,90753.0,0.011032]
[1768102879771,0.00900533,90769.0,90753.0,0.011032]
[1768102879974,0.02571169,90768.0,90753.0,0.011032]
[1768102880177,0.00900533,90769.0,90753.0,0.011032]
[1768102880366,0.02571169,90768.0,90753.0,0.011032]
[1768102880568,0.00900533,90769.0,90753.0,0.011032]
[1768102880863,0.02571169,90768.0,90753.0,0.011032]
[1768102881068,0.00900533,90769.0,90753.0,0.011032]
[1768102881373,0.02571169,90768.0,90753.0,0.011032]
[1768102881572,0.00900533,90769.0,90753.0,0.011032]
[1768102881871,0.02571169,90768.0,90753.0,0.011032]
[1768102882171,0.00900533,90769.0,90753.0,0.011032]
[1768102882371,0.0257117,90768.0,90753.0,0.011032]
[1768102882578,0.00900533,90769.0,90753.0,0.011032]
[1768102882767,0.0257117,90768.0,90753.0,0.011032]
[1768102882962,0.00900533,90769.0,90753.0,0.011032]
[1768102883186,0.0257117,90768.0,90753.0,0.011032]
[1768102883378,0.00900533,90769.0,90753.0,0.011032]
[1768102883678,0.0257117,90768.0,90753.0,0.011032]
[1768102883883,0.00900533,90769.0,90753.0,0.011032]
[1768102884081,0.0257117,90768.0,90753.0,0.011032]
[1768102884273,0.00900533,90769.0,90753.0,0.011032]
[1768102884575,0.0257117,90768.0,90753.0,0.011032]
[1768102884772,0.00900533,90769.0,90753.0,0.011032]
[1768102884979,0.0257117,90768.0,90753.0,0.011032]
[1768102885180,0.00900533,90769.0,90753.0,0.011032]
[1768102885374,0.0257117,90768.0,90753.0,0.011032]
[1768102885571,0.00900533,90769.0,90753.0,0.011032]
[1768102885773,0.0257117,90768.0,90753.0,0.011032]
[1768102885978,0.00900533,90769.0,90753.0,0.011032]
[1768102886166,0.0257117,90768.0,90753.0,0.011032]
[1768102886470,0.00900533,90769.0,90753.0,0.011032]
[1768102886671,0.0257117,90768.0,90753.0,0.011032]
[1768102886968,0.00900533,90769.0,90753.0,0.011032]
[1768102887167,0.0257117,90768.0,90753.0,0.011032]
[1768102887370,0.00900533,90769.0,90753.0,0.011032]
[1768102887579,0.0257117,90768.0,90753.0,0.011032]
[1768102887767,0.00900533,90769.0,90753.0,0.011032]
[1768102887971,0.0257117,90768.0,90753.0,0.011032]
[1768102888174,0.00900533,90769.0,90753.0,0.011032]
[1768102888374,0.0257117,90768.0,90753.0,0.011032]
[1768102888574,0.00900533,90769.0,90753.0,0.011032]
[1768102888780,0.0257117,90768.0,90753.0,0.011032]
[1768102888980,0.00900533,90769.0,90753.0,0.011032]
[1768102889181,0.0257117,90768.0,90753.0,0.011032]
[1768102889480,0.00900533,90769.0,90753.0,0.011032]
[1768102889670,0.0257117,90768.0,90753.0,0.011032]
[1768102889872,0.00900533,90769.0,90753.0,0.011032]
[1768102890168,0.0257117,90768.0,90753.0,0.011032]
[1768102890371,0.00900533,90769.0,90753.0,0.011032]
[1768102890572,0.0257117,90768.0,90753.0,0.011032]
[1768102890870,0.00900533,90769.0,90753.0,0.011032]
[1768102891070,0.0257117,90768.0,90753.0,0.011032]
[1768102891266,0.00900533,90769.0,90753.0,0.011032]
[1768102891467,0.0257117,90768.0,90753.0,0.011032]
[1768102891678,0.00900533,90769.0,90753.0,0.011032]
[1768102891880,0.0257117,90768.0,90753.0,0.011032]
[1768102892078,0.00900533,90769.0,90753.0,0.011032]
[1768102892276,0.0257117,90768.0,90753.0,0.011032]
[1768102892478,0.00900533,90769.0,90753.0,0.011032]
[1768102892680,0.0257117,90768.0,90753.0,0.011032]
[1768102892880,0.00900533,90769.0,90753.0,0.011032]
[1768102893084,0.0257117,90768.0,90753.0,0.011032]
[1768102893381,0.00900533,90769.0,90753.0,0.011032]
[1768102893581,0.0257117,90768.0,90753.0,0.011032]
[1768102893781,0.00900533,90769.0,90753.0,0.011032]
[1768102894083,0.0257117,90768.0,90753.0,0.011032]
[1768102894282,0.00900533,90769.0,90753.0,0.011032]
[1768102894478,0.0257117,90768.0,90753.0,0.011032]
[1768102894678,0.00900533,90769.0,90753.0,0.011032]
[1768102894879,0.0257117,90768.0,90753.0,0.011032]
[1768102895179,0.00900533,90769.0,90753.0,0.011032]
[1768102895378,0.02571169,90768.0,90753.0,0.011032]
[1768102895680,0.00900533,90769.0,90753.0,0.011032]
[1768102895875,0.02571169,90768.0,90753.0,0.011032]
[1768102896075,0.00900533,90769.0,90753.0,0.011032]
[1768102896276,0.02571169,90768.0,90753.0,0.011032]